[Event "*** Titled Tuesday Blitz"]
[Site "Chess.com"]
[Date "2019.09.03"]
[Round "2"]
[White "NicoChasin"]
[Black "Parhamov"]
[Result "0-1"]
[WhiteElo "2491"]
[BlackElo "2896"]
[TimeControl "180+2"]
[EndTime "15:20:11 PDT"]
[Termination "Parhamov won by resignation"]

1. e4 {[%clk 0:02:55.9]} 1... e5 {[%clk 0:03:00.4]} 2. Nf3 {[%clk 0:02:56.6]}
2... Nc6 {[%clk 0:03:01.2]} 3. Bc4 {[%clk 0:02:57.1]} 3... Bc5 {[%clk
0:03:01.4]} 4. O-O {[%clk 0:02:55.2]} 4... Nf6 {[%clk 0:03:01.8]} 5. d3 {[%clk
0:02:52.7]} 5... O-O {[%clk 0:02:54.7]} 6. c3 {[%clk 0:02:53.5]} 6... d6 {[%clk
0:02:54]} 7. b4 {[%clk 0:02:52.8]} 7... Bb6 {[%clk 0:02:54.2]} 8. a4 {[%clk
0:02:53.9]} 8... a5 {[%clk 0:02:49.1]} 9. b5 {[%clk 0:02:54.5]} 9... Ne7 {[%clk
0:02:46]} 10. Be3 {[%clk 0:02:54.5]} 10... Bxe3 {[%clk 0:02:45.4]} 11. fxe3
{[%clk 0:02:56.4]} 11... Ng6 {[%clk 0:02:46]} 12. Nbd2 {[%clk 0:02:53.5]} 12...
c6 {[%clk 0:02:46.7]} 13. bxc6 {[%clk 0:02:52.6]} 13... bxc6 {[%clk 0:02:46.8]}
14. d4 {[%clk 0:02:54.1]} 14... Re8 {[%clk 0:02:38.4]} 15. Qc2 {[%clk
0:02:50.7]} 15... Qe7 {[%clk 0:02:35.7]} 16. Ng5 {[%clk 0:02:48.1]} 16... d5
{[%clk 0:02:33.2]} 17. exd5 {[%clk 0:02:48.4]} 17... cxd5 {[%clk 0:02:34.3]} 18.
Bb5 {[%clk 0:02:40.6]} 18... Bd7 {[%clk 0:02:35.6]} 19. Bxd7 {[%clk 0:02:40.6]}
19... Qxd7 {[%clk 0:02:36.7]} 20. Nb3 {[%clk 0:02:40.9]} 20... h6 {[%clk
0:02:34.4]} 21. Nc5 {[%clk 0:02:40.6]} 21... Qg4 {[%clk 0:02:34.5]} 22. Nf3
{[%clk 0:02:36.3]} 22... e4 {[%clk 0:02:35.9]} 23. Nd2 {[%clk 0:02:33.3]} 23...
Qg5 {[%clk 0:02:36]} 24. Rfe1 {[%clk 0:02:26.7]} 24... Nh4 {[%clk 0:02:33.8]}
25. Re2 {[%clk 0:02:23]} 25... Ng4 {[%clk 0:02:34.3]} 26. Nf1 {[%clk 0:02:24]}
26... Rab8 {[%clk 0:02:32.6]} 27. Rb1 {[%clk 0:02:21.6]} 27... Nf3+ {[%clk
0:02:30.9]} 28. Kh1 {[%clk 0:02:21]} 28... Qh4 {[%clk 0:02:21.5]} 29. gxf3
{[%clk 0:01:49.2]} 29... exf3 {[%clk 0:02:21.3]} 30. Rxb8 {[%clk 0:01:49.6]}
30... Rxb8 {[%clk 0:02:21.9]} 31. Rd2 {[%clk 0:01:51.2]} 31... Qh3 {[%clk
0:02:19.7]} 32. Qd1 {[%clk 0:01:40.9]} 32... f2 {[%clk 0:02:18.7]} 33. Nd3
{[%clk 0:01:38.3]} 33... Rb1 {[%clk 0:02:19.5]} 34. Nf4 {[%clk 0:01:15.7]} 34...
Qxf1+ {[%clk 0:02:14.3]} 35. Qxf1 {[%clk 0:01:13.4]} 35... Rxf1+ {[%clk
0:02:15.9]} 36. Kg2 {[%clk 0:01:14.1]} 36... Rg1+ {[%clk 0:02:17.6]} 0-1

[Event "*** Titled Tuesday Blitz"]
[Site "Chess.com"]
[Date "2019.09.03"]
[Round "2"]
[White "Ar4uha"]
[Black "DanielNaroditsky"]
[Result "0-1"]
[WhiteElo "2507"]
[BlackElo "2998"]
[TimeControl "180+2"]
[EndTime "15:20:26 PDT"]
[Termination "DanielNaroditsky won by resignation"]

1. e4 {[%clk 0:03:01.9]} 1... c5 {[%clk 0:02:57.7]} 2. Nf3 {[%clk 0:03:03]} 2...
a6 {[%clk 0:02:57.3]} 3. c3 {[%clk 0:03:03.6]} 3... e6 {[%clk 0:02:56.3]} 4. d4
{[%clk 0:03:04.4]} 4... d5 {[%clk 0:02:57.9]} 5. exd5 {[%clk 0:03:06.3]} 5...
exd5 {[%clk 0:02:57.3]} 6. Bd3 {[%clk 0:03:02.2]} 6... Nf6 {[%clk 0:02:58.5]} 7.
h3 {[%clk 0:03:01.8]} 7... Be7 {[%clk 0:02:59.9]} 8. O-O {[%clk 0:03:02.8]} 8...
O-O {[%clk 0:03:00.9]} 9. dxc5 {[%clk 0:03:04.3]} 9... Bxc5 {[%clk 0:03:01.9]}
10. Nbd2 {[%clk 0:03:05.7]} 10... h6 {[%clk 0:03:03.1]} 11. Nb3 {[%clk
0:03:06.2]} 11... Bb6 {[%clk 0:03:04.2]} 12. Re1 {[%clk 0:03:04.1]} 12... Nc6
{[%clk 0:03:04.2]} 13. Be3 {[%clk 0:03:05.5]} 13... Bc7 {[%clk 0:03:04]} 14.
Nbd4 {[%clk 0:03:06.7]} 14... Qd6 {[%clk 0:03:01]} 15. Nxc6 {[%clk 0:03:04.7]}
15... bxc6 {[%clk 0:03:02.9]} 16. Bd4 {[%clk 0:03:06.3]} 16... c5 {[%clk
0:02:49.5]} 17. Be5 {[%clk 0:03:07]} 17... Qc6 {[%clk 0:02:50.2]} 18. Bc2 {[%clk
0:03:00.9]} 18... Bb7 {[%clk 0:02:49.5]} 19. Qd2 {[%clk 0:02:56.2]} 19... Rad8
{[%clk 0:02:46.8]} 20. Qf4 {[%clk 0:02:57.1]} 20... Bxe5 {[%clk 0:02:39.6]} 21.
Nxe5 {[%clk 0:02:58.2]} 21... Qc7 {[%clk 0:02:40.4]} 22. Qf5 {[%clk 0:02:50.9]}
22... Bc8 {[%clk 0:02:39.3]} 23. Qd3 {[%clk 0:02:48.2]} 23... Ne4 {[%clk
0:02:38.3]} 24. Nf3 {[%clk 0:02:44.8]} 24... Bf5 {[%clk 0:02:35.6]} 25. Qe3
{[%clk 0:02:46.3]} 25... Rfe8 {[%clk 0:02:35]} 26. Nh4 {[%clk 0:02:34]} 26...
Bh7 {[%clk 0:02:30.1]} 27. Rad1 {[%clk 0:02:23.4]} 27... d4 {[%clk 0:02:27.1]}
28. Qc1 {[%clk 0:02:10.5]} 28... dxc3 {[%clk 0:02:14.2]} 29. Rxd8 {[%clk
0:02:05.4]} 29... Qxd8 {[%clk 0:02:14.9]} 30. bxc3 {[%clk 0:02:07]} 30... Qxh4
{[%clk 0:02:14.6]} 31. Qe3 {[%clk 0:02:03.1]} 31... Bg6 {[%clk 0:02:01.4]} 32.
Qf3 {[%clk 0:01:53.3]} 32... Qe7 {[%clk 0:01:44.3]} 33. Qf4 {[%clk 0:01:50.5]}
33... Qd6 {[%clk 0:01:34.3]} 34. Rxe4 {[%clk 0:01:50]} 34... Qxf4 {[%clk
0:01:34.4]} 35. Rxf4 {[%clk 0:01:49.1]} 35... Bxc2 {[%clk 0:01:35.9]} 36. Rc4
{[%clk 0:01:49.1]} 36... Re5 {[%clk 0:01:36.3]} 37. f4 {[%clk 0:01:50.7]} 0-1

[Event "*** Titled Tuesday Blitz"]
[Site "Chess.com"]
[Date "2019.09.03"]
[Round "2"]
[White "Iustin106"]
[Black "bluejay1897"]
[Result "1/2-1/2"]
[WhiteElo "2496"]
[BlackElo "2303"]
[TimeControl "180+2"]
[EndTime "15:21:02 PDT"]
[Termination "Game drawn by agreement"]

1. d4 {[%clk 0:03:01.9]} 1... Nf6 {[%clk 0:03:00.4]} 2. c4 {[%clk 0:03:03.4]}
2... e6 {[%clk 0:03:00]} 3. Nc3 {[%clk 0:03:04.9]} 3... d5 {[%clk 0:03:00.5]} 4.
cxd5 {[%clk 0:03:05.3]} 4... exd5 {[%clk 0:03:00.7]} 5. Bg5 {[%clk 0:03:05.8]}
5... Be7 {[%clk 0:02:51.2]} 6. e3 {[%clk 0:03:06.8]} 6... O-O {[%clk 0:02:51]}
7. Bd3 {[%clk 0:03:07.9]} 7... c6 {[%clk 0:02:52.4]} 8. h3 {[%clk 0:03:08.7]}
8... Re8 {[%clk 0:02:52]} 9. Qc2 {[%clk 0:03:08.5]} 9... Nbd7 {[%clk 0:02:52.4]}
10. Nf3 {[%clk 0:03:09]} 10... Nf8 {[%clk 0:02:53.2]} 11. O-O {[%clk 0:03:05.7]}
11... Ne4 {[%clk 0:02:40.9]} 12. Bf4 {[%clk 0:03:00]} 12... f5 {[%clk
0:02:38.5]} 13. Ne5 {[%clk 0:02:59.7]} 13... Nd7 {[%clk 0:02:27.4]} 14. f3
{[%clk 0:02:56.3]} 14... Nxe5 {[%clk 0:02:16.4]} 15. Bxe5 {[%clk 0:02:55.1]}
15... Nxc3 {[%clk 0:02:17]} 16. bxc3 {[%clk 0:02:55.3]} 16... Bd6 {[%clk
0:02:03.8]} 17. f4 {[%clk 0:02:48]} 17... g6 {[%clk 0:02:03.5]} 18. c4 {[%clk
0:02:47.7]} 18... Bxe5 {[%clk 0:02:02.4]} 19. fxe5 {[%clk 0:02:45.9]} 19... Be6
{[%clk 0:02:02.3]} 20. Rab1 {[%clk 0:02:43.9]} 20... b6 {[%clk 0:02:02.1]} 21.
Rfc1 {[%clk 0:02:40.2]} 21... Rc8 {[%clk 0:01:53.5]} 22. c5 {[%clk 0:02:33.4]}
22... b5 {[%clk 0:01:53.2]} 23. a4 {[%clk 0:02:33.6]} 23... a6 {[%clk
0:01:54.1]} 24. Ra1 {[%clk 0:02:28.8]} 24... Qg5 {[%clk 0:01:53.8]} 25. Qf2
{[%clk 0:02:29]} 25... Rf8 {[%clk 0:01:54]} 26. Qf4 {[%clk 0:02:24.9]} 26... Qe7
{[%clk 0:01:43.8]} 27. axb5 {[%clk 0:02:23.2]} 27... axb5 {[%clk 0:01:43.3]} 28.
Ra6 {[%clk 0:02:22.7]} 28... Qb7 {[%clk 0:01:42.5]} 29. Rca1 {[%clk 0:02:23]}
29... Ra8 {[%clk 0:01:41.4]} 30. R6a2 {[%clk 0:02:06.9]} 30... Rxa2 {[%clk
0:01:37.6]} 31. Rxa2 {[%clk 0:02:08.8]} 31... Ra8 {[%clk 0:01:36.9]} 32. Qf2
{[%clk 0:02:10.2]} 32... Ra6 {[%clk 0:01:38.1]} 33. Bb1 {[%clk 0:02:04.7]} 33...
Qa7 {[%clk 0:01:37.8]} 34. Rxa6 {[%clk 0:02:06.1]} 34... Qxa6 {[%clk 0:01:39.1]}
35. Qa2 {[%clk 0:02:07.6]} 35... Qxa2 {[%clk 0:01:40.1]} 36. Bxa2 {[%clk
0:02:09.5]} 36... Kf7 {[%clk 0:01:35.2]} 37. Kf2 {[%clk 0:02:10.3]} 37... g5
{[%clk 0:01:33.7]} 38. Ke1 {[%clk 0:02:06.6]} 38... Ke7 {[%clk 0:01:30.2]} 39.
Kd2 {[%clk 0:02:04.2]} 39... Kd7 {[%clk 0:01:29.3]} 40. Kc3 {[%clk 0:02:04.1]}
40... Kc7 {[%clk 0:01:28.7]} 41. Kb4 {[%clk 0:02:02.2]} 41... Kb7 {[%clk
0:01:29.8]} 42. Ka5 {[%clk 0:02:03.4]} 42... Ka7 {[%clk 0:01:30.9]} 43. Bb1
{[%clk 0:02:04.6]} 43... h5 {[%clk 0:01:27.3]} 44. g3 {[%clk 0:02:05.2]} 44...
g4 {[%clk 0:01:27]} 45. hxg4 {[%clk 0:01:54.9]} 45... hxg4 {[%clk 0:01:26.8]}
1/2-1/2

[Event "*** Titled Tuesday Blitz"]
[Site "Chess.com"]
[Date "2019.09.03"]
[Round "2"]
[White "LiamVrolijk"]
[Black "TheBigBoss04"]
[Result "1/2-1/2"]
[WhiteElo "2758"]
[BlackElo "2540"]
[TimeControl "180+2"]
[EndTime "15:21:05 PDT"]
[Termination "Game drawn by agreement"]

1. c4 {[%clk 0:03:01.8]} 1... g6 {[%clk 0:02:58.3]} 2. d4 {[%clk 0:03:02.5]}
2... Bg7 {[%clk 0:03:00]} 3. e4 {[%clk 0:03:03.6]} 3... Nc6 {[%clk 0:02:59.9]}
4. Nf3 {[%clk 0:03:01.5]} 4... d6 {[%clk 0:02:59]} 5. d5 {[%clk 0:02:58.9]} 5...
Nb8 {[%clk 0:02:58.9]} 6. Nc3 {[%clk 0:02:57.3]} 6... Nf6 {[%clk 0:03:00.3]} 7.
h3 {[%clk 0:02:55]} 7... a5 {[%clk 0:03:00.4]} 8. Be2 {[%clk 0:02:55]} 8... O-O
{[%clk 0:03:00.9]} 9. Be3 {[%clk 0:02:56.6]} 9... Na6 {[%clk 0:03:00.2]} 10. Nd4
{[%clk 0:02:55.4]} 10... Nc5 {[%clk 0:03:01.1]} 11. f3 {[%clk 0:02:57.1]} 11...
e6 {[%clk 0:03:00.8]} 12. g4 {[%clk 0:02:55.9]} 12... exd5 {[%clk 0:03:01]} 13.
cxd5 {[%clk 0:02:57.6]} 13... Bd7 {[%clk 0:02:51.7]} 14. Qd2 {[%clk 0:02:58]}
14... c6 {[%clk 0:02:52.7]} 15. dxc6 {[%clk 0:02:47.3]} 15... bxc6 {[%clk
0:02:50.4]} 16. O-O {[%clk 0:02:41.5]} 16... Qe7 {[%clk 0:02:38.1]} 17. Rad1
{[%clk 0:02:41.5]} 17... Rfd8 {[%clk 0:02:37.1]} 18. Rfe1 {[%clk 0:02:40.1]}
18... a4 {[%clk 0:02:35.3]} 19. Bf1 {[%clk 0:02:40]} 19... Rab8 {[%clk
0:02:34.3]} 20. Bg2 {[%clk 0:02:41]} 20... Qf8 {[%clk 0:02:29.7]} 21. f4 {[%clk
0:02:39.8]} 21... Ne8 {[%clk 0:02:24.4]} 22. Qf2 {[%clk 0:02:37.3]} 22... Ne6
{[%clk 0:02:20.2]} 23. Nxe6 {[%clk 0:02:31.9]} 23... Bxe6 {[%clk 0:02:14]} 24.
f5 {[%clk 0:02:32.9]} 24... Bc4 {[%clk 0:02:15.2]} 25. Bd4 {[%clk 0:02:25.1]}
25... c5 {[%clk 0:02:11.9]} 26. Bxg7 {[%clk 0:02:24.6]} 26... Qxg7 {[%clk
0:02:13.1]} 27. e5 {[%clk 0:02:23.8]} 27... gxf5 {[%clk 0:01:56.6]} 28. gxf5
{[%clk 0:02:25]} 28... dxe5 {[%clk 0:01:57.7]} 29. Re4 {[%clk 0:02:11.9]} 29...
Rd4 {[%clk 0:01:51.5]} 30. Rdxd4 {[%clk 0:02:13]} 30... cxd4 {[%clk 0:01:49]}
31. Rg4 {[%clk 0:02:13.5]} 31... dxc3 {[%clk 0:01:48.6]} 32. Rxg7+ {[%clk
0:02:12.6]} 32... Nxg7 {[%clk 0:01:49.3]} 33. bxc3 {[%clk 0:02:13.8]} 33... a3
{[%clk 0:01:48.9]} 34. f6 {[%clk 0:02:10.1]} 34... Ne6 {[%clk 0:01:48.4]} 35.
Qa7 {[%clk 0:02:03.9]} 35... Rb1+ {[%clk 0:01:45.3]} 36. Kh2 {[%clk 0:02:05.2]}
36... Rb2 {[%clk 0:01:44.7]} 37. Qa8+ {[%clk 0:01:55]} 37... Nf8 {[%clk
0:01:45]} 38. Qxa3 {[%clk 0:01:56.9]} 38... Rxa2 {[%clk 0:01:43.5]} 39. Qb4
{[%clk 0:01:30.6]} 39... Bd5 {[%clk 0:01:38.6]} 40. Qg4+ {[%clk 0:01:30.9]}
40... Ng6 {[%clk 0:01:31.7]} 41. Qc8+ {[%clk 0:01:32.3]} 41... Nf8 {[%clk
0:01:33]} 42. Qg4+ {[%clk 0:01:33.2]} 1/2-1/2

[Event "*** Titled Tuesday Blitz"]
[Site "Chess.com"]
[Date "2019.09.03"]
[Round "2"]
[White "Cukiero"]
[Black "MITerryble"]
[Result "0-1"]
[WhiteElo "2410"]
[BlackElo "2840"]
[TimeControl "180+2"]
[EndTime "15:21:06 PDT"]
[Termination "MITerryble won by resignation"]

1. c4 {[%clk 0:02:56.8]} 1... e5 {[%clk 0:03:01.1]} 2. Nc3 {[%clk 0:02:57.4]}
2... Nc6 {[%clk 0:03:02]} 3. g3 {[%clk 0:02:58.2]} 3... g6 {[%clk 0:03:03.4]} 4.
Bg2 {[%clk 0:02:59.3]} 4... Bg7 {[%clk 0:03:05.3]} 5. d3 {[%clk 0:03:00.5]} 5...
f5 {[%clk 0:03:05.8]} 6. Nf3 {[%clk 0:02:57.8]} 6... Nge7 {[%clk 0:03:06.5]} 7.
O-O {[%clk 0:02:49.4]} 7... O-O {[%clk 0:03:05.8]} 8. e4 {[%clk 0:02:44.1]} 8...
d6 {[%clk 0:03:06.5]} 9. Nd5 {[%clk 0:02:36.6]} 9... h6 {[%clk 0:03:07.1]} 10.
Bd2 {[%clk 0:02:12.8]} 10... g5 {[%clk 0:03:08.2]} 11. exf5 {[%clk 0:01:59.1]}
11... Bxf5 {[%clk 0:03:07.1]} 12. Nxe7+ {[%clk 0:01:53.6]} 12... Qxe7 {[%clk
0:03:02.9]} 13. Qb3 {[%clk 0:01:51.8]} 13... Rab8 {[%clk 0:03:01]} 14. h3 {[%clk
0:01:39.4]} 14... Bxh3 {[%clk 0:02:44.7]} 15. Bxh3 {[%clk 0:01:19.4]} 15... Rxf3
{[%clk 0:02:45.7]} 16. Bg2 {[%clk 0:01:20.4]} 16... Nd4 {[%clk 0:02:47.1]} 17.
Qd1 {[%clk 0:01:09.4]} 17... Rxd3 {[%clk 0:02:03.8]} 18. Be4 {[%clk 0:01:09.5]}
18... Rxd2 {[%clk 0:02:05.3]} 19. Qxd2 {[%clk 0:01:10.2]} 19... c6 {[%clk
0:02:07.2]} 20. Rae1 {[%clk 0:01:03.3]} 20... Rf8 {[%clk 0:02:04.4]} 21. Qxd4
{[%clk 0:00:57.8]} 21... exd4 {[%clk 0:02:02.2]} 22. Bd5+ {[%clk 0:00:54.8]}
22... cxd5 {[%clk 0:02:02.9]} 23. Rxe7 {[%clk 0:00:55.5]} 23... dxc4 {[%clk
0:02:04.4]} 24. Rxb7 {[%clk 0:00:49.5]} 24... d3 {[%clk 0:02:05.8]} 25. Rc7
{[%clk 0:00:47.2]} 25... d5 {[%clk 0:02:03.9]} 26. Rd7 {[%clk 0:00:48]} 26...
Bxb2 {[%clk 0:01:54.4]} 27. Rxd5 {[%clk 0:00:47.7]} 27... Rc8 {[%clk 0:01:56]}
28. f4 {[%clk 0:00:26.5]} 28... g4 {[%clk 0:01:45.6]} 29. f5 {[%clk 0:00:21]}
29... Bf6 {[%clk 0:01:43.6]} 30. Rd4 {[%clk 0:00:19.7]} 30... Bxd4+ {[%clk
0:01:44.4]} 0-1

[Event "*** Titled Tuesday Blitz"]
[Site "Chess.com"]
[Date "2019.09.03"]
[Round "2"]
[White "Th3ChessViking"]
[Black "JussupowFan"]
[Result "1/2-1/2"]
[WhiteElo "2449"]
[BlackElo "2223"]
[TimeControl "180+2"]
[EndTime "15:21:13 PDT"]
[Termination "Game drawn by repetition"]

1. d4 {[%clk 0:03:01.9]} 1... c5 {[%clk 0:02:58.6]} 2. c3 {[%clk 0:03:01.9]}
2... Nf6 {[%clk 0:02:56.7]} 3. Bf4 {[%clk 0:03:02]} 3... d5 {[%clk 0:02:56.5]}
4. e3 {[%clk 0:03:02.9]} 4... Nc6 {[%clk 0:02:57.5]} 5. Nd2 {[%clk 0:03:03.9]}
5... e6 {[%clk 0:02:55.2]} 6. Ngf3 {[%clk 0:03:04.4]} 6... Bd6 {[%clk
0:02:56.1]} 7. Bg3 {[%clk 0:03:05.9]} 7... O-O {[%clk 0:02:56.6]} 8. Bb5 {[%clk
0:03:07.2]} 8... a6 {[%clk 0:02:45.9]} 9. Bxc6 {[%clk 0:03:07.3]} 9... bxc6
{[%clk 0:02:47.8]} 10. Qa4 {[%clk 0:03:08.7]} 10... Qc7 {[%clk 0:02:46.3]} 11.
Bxd6 {[%clk 0:03:00.3]} 11... Qxd6 {[%clk 0:02:48.2]} 12. Qa3 {[%clk 0:03:01.9]}
12... Rb8 {[%clk 0:02:45.9]} 13. Nb3 {[%clk 0:02:59.9]} 13... Ne4 {[%clk
0:02:43.1]} 14. Nxc5 {[%clk 0:02:41.8]} 14... Nxc5 {[%clk 0:02:42.1]} 15. dxc5
{[%clk 0:02:43.7]} 15... Qe7 {[%clk 0:02:40.5]} 16. Nd4 {[%clk 0:02:38.4]} 16...
Bb7 {[%clk 0:02:38.8]} 17. O-O {[%clk 0:02:32.6]} 17... e5 {[%clk 0:02:38.8]}
18. Ne2 {[%clk 0:02:32.3]} 18... f5 {[%clk 0:02:38.7]} 19. Rae1 {[%clk
0:02:32.5]} 19... Rf6 {[%clk 0:02:25.7]} 20. f4 {[%clk 0:02:29.8]} 20... exf4
{[%clk 0:02:25]} 21. Nxf4 {[%clk 0:02:21.5]} 21... Re8 {[%clk 0:02:24]} 22. Qb4
{[%clk 0:02:20.2]} 22... g5 {[%clk 0:02:18.8]} 23. Nh5 {[%clk 0:02:20.3]} 23...
Rf7 {[%clk 0:02:14.3]} 24. Qd4 {[%clk 0:02:19.7]} 24... Qe5 {[%clk 0:02:12.7]}
25. Rf3 {[%clk 0:02:07.7]} 25... Bc8 {[%clk 0:02:03.9]} 26. Ng3 {[%clk
0:01:56.2]} 26... Qxd4 {[%clk 0:01:59.6]} 27. cxd4 {[%clk 0:01:58.1]} 27... f4
{[%clk 0:02:00.9]} 28. Ref1 {[%clk 0:01:58.4]} 28... Bg4 {[%clk 0:01:50.2]} 29.
R3f2 {[%clk 0:01:56.3]} 29... Rxe3 {[%clk 0:01:49.3]} 30. h3 {[%clk 0:01:20.9]}
30... Rxg3 {[%clk 0:01:43.9]} 31. hxg4 {[%clk 0:01:22.8]} 31... Rxg4 {[%clk
0:01:45.8]} 32. Rf3 {[%clk 0:01:23.8]} 32... Re7 {[%clk 0:01:34.3]} 33. Ra3
{[%clk 0:01:21]} 33... Re2 {[%clk 0:01:34.4]} 34. Rf2 {[%clk 0:01:22.2]} 34...
Re1+ {[%clk 0:01:05]} 35. Rf1 {[%clk 0:01:20.9]} 35... Re2 {[%clk 0:01:06.1]}
36. Rf2 {[%clk 0:01:22]} 36... Re1+ {[%clk 0:01:07.2]} 37. Rf1 {[%clk
0:01:22.9]} 37... Re2 {[%clk 0:01:08.4]} 1/2-1/2

[Event "*** Titled Tuesday Blitz"]
[Site "Chess.com"]
[Date "2019.09.03"]
[Round "2"]
[White "a_kandil"]
[Black "Komissarov_alex"]
[Result "1-0"]
[WhiteElo "2408"]
[BlackElo "2105"]
[TimeControl "180+2"]
[EndTime "15:21:13 PDT"]
[Termination "a_kandil won by resignation"]

1. e4 {[%clk 0:02:59.3]} 1... e5 {[%clk 0:03:00.3]} 2. Nf3 {[%clk 0:03:00.7]}
2... Nc6 {[%clk 0:03:00.5]} 3. Bb5 {[%clk 0:03:02]} 3... Nd4 {[%clk 0:03:01.1]}
4. Nxd4 {[%clk 0:03:01.3]} 4... exd4 {[%clk 0:03:02]} 5. O-O {[%clk 0:03:02.7]}
5... c6 {[%clk 0:03:01.2]} 6. Bc4 {[%clk 0:03:03.9]} 6... Nf6 {[%clk 0:03:00.9]}
7. e5 {[%clk 0:02:52.5]} 7... d5 {[%clk 0:02:58.8]} 8. exd6 {[%clk 0:02:44.5]}
8... Bxd6 {[%clk 0:02:55.6]} 9. Re1+ {[%clk 0:02:45.9]} 9... Kf8 {[%clk
0:02:55.9]} 10. h3 {[%clk 0:02:44.7]} 10... b5 {[%clk 0:02:47.5]} 11. Bf1 {[%clk
0:02:45]} 11... c5 {[%clk 0:02:43.1]} 12. d3 {[%clk 0:02:45.7]} 12... Bb7 {[%clk
0:02:38.9]} 13. Bg5 {[%clk 0:02:44.7]} 13... Bc7 {[%clk 0:02:33.7]} 14. Nd2
{[%clk 0:02:37.8]} 14... Qd6 {[%clk 0:02:27.8]} 15. g3 {[%clk 0:02:38.7]} 15...
Qc6 {[%clk 0:02:21.4]} 16. Ne4 {[%clk 0:02:39.4]} 16... Nxe4 {[%clk 0:02:16.9]}
17. dxe4 {[%clk 0:02:41.3]} 17... Re8 {[%clk 0:02:12.7]} 18. Bg2 {[%clk
0:02:40.8]} 18... f5 {[%clk 0:02:04.1]} 19. Qf3 {[%clk 0:02:31.7]} 19... Re5
{[%clk 0:01:39.7]} 20. Bf4 {[%clk 0:01:47.1]} 20... Rxe4 {[%clk 0:01:20.4]} 21.
Bxc7 {[%clk 0:01:33.7]} 21... Rxe1+ {[%clk 0:01:21.2]} 22. Rxe1 {[%clk
0:01:35.6]} 22... Qxf3 {[%clk 0:01:20.4]} 23. Bxf3 {[%clk 0:01:37.5]} 23... Bxf3
{[%clk 0:01:13.7]} 24. Bd6+ {[%clk 0:01:23]} 24... Kf7 {[%clk 0:01:14.2]} 25.
Bxc5 {[%clk 0:01:24.4]} 25... Be4 {[%clk 0:01:10.2]} 26. Bxd4 {[%clk 0:01:23.3]}
26... Bxc2 {[%clk 0:01:09.1]} 27. Re5 {[%clk 0:01:22.8]} 27... a6 {[%clk
0:00:54.8]} 28. Rc5 {[%clk 0:01:22.3]} 28... Re8 {[%clk 0:00:47.1]} 29. Rxc2
{[%clk 0:01:22.3]} 1-0

[Event "*** Titled Tuesday Blitz"]
[Site "Chess.com"]
[Date "2019.09.03"]
[Round "2"]
[White "albi1999"]
[Black "gena217"]
[Result "0-1"]
[WhiteElo "2474"]
[BlackElo "2906"]
[TimeControl "180+2"]
[EndTime "15:21:18 PDT"]
[Termination "gena217 won by checkmate"]

1. d4 {[%clk 0:03:01.9]} 1... Nf6 {[%clk 0:03:00.1]} 2. c4 {[%clk 0:03:03.3]}
2... e6 {[%clk 0:03:01.7]} 3. Nf3 {[%clk 0:03:03.8]} 3... d5 {[%clk 0:03:02.2]}
4. g3 {[%clk 0:03:04.2]} 4... Bb4+ {[%clk 0:03:02.3]} 5. Bd2 {[%clk 0:03:04.5]}
5... Bd6 {[%clk 0:03:03.6]} 6. Nc3 {[%clk 0:03:04.7]} 6... O-O {[%clk 0:03:03]}
7. Bg5 {[%clk 0:03:03.9]} 7... dxc4 {[%clk 0:03:02.1]} 8. e4 {[%clk 0:03:04.5]}
8... Be7 {[%clk 0:03:02.2]} 9. Bxc4 {[%clk 0:03:03.6]} 9... a6 {[%clk
0:03:01.1]} 10. e5 {[%clk 0:02:38.4]} 10... Nfd7 {[%clk 0:02:59.3]} 11. h4
{[%clk 0:02:35.5]} 11... h6 {[%clk 0:02:56.3]} 12. Bxe7 {[%clk 0:02:30]} 12...
Qxe7 {[%clk 0:02:58.2]} 13. Qe2 {[%clk 0:02:22.5]} 13... b5 {[%clk 0:02:47.2]}
14. Bd3 {[%clk 0:02:23.5]} 14... Bb7 {[%clk 0:02:47.7]} 15. O-O-O {[%clk
0:02:24.1]} 15... c5 {[%clk 0:02:43.1]} 16. Be4 {[%clk 0:02:07.5]} 16... Ra7
{[%clk 0:02:35.2]} 17. d5 {[%clk 0:02:02.3]} 17... b4 {[%clk 0:02:35.9]} 18. d6
{[%clk 0:02:03]} 18... Qd8 {[%clk 0:02:37.4]} 19. Bxb7 {[%clk 0:02:02]} 19...
bxc3 {[%clk 0:02:37.8]} 20. Be4 {[%clk 0:02:02.3]} 20... cxb2+ {[%clk
0:02:27.4]} 21. Qxb2 {[%clk 0:02:02.9]} 21... c4 {[%clk 0:02:12.5]} 22. Qd4
{[%clk 0:01:56.4]} 22... Qa5 {[%clk 0:01:44.9]} 23. Qxa7 {[%clk 0:01:36.6]}
23... Nc5 {[%clk 0:01:45.6]} 24. Bc2 {[%clk 0:01:22.1]} 24... Nc6 {[%clk
0:01:45.2]} 25. Qc7 {[%clk 0:01:18.3]} 25... Qa3+ {[%clk 0:01:46.4]} 26. Kb1
{[%clk 0:00:46.9]} 26... Nb4 {[%clk 0:01:19.2]} 27. Nd4 {[%clk 0:00:35.5]} 27...
c3 {[%clk 0:01:16.4]} 28. Qxc5 {[%clk 0:00:28.2]} 28... Qb2# {[%clk 0:01:16.7]}
0-1